Cogmind - Beta 13 @@@ ROGUE MODE // 2024.04.25 @ 03:50:56 Player: Millea Result: Destroyed by G-47 Trooper with Particle Gun Performance ------------- Evolutions (2) 1000 Regions Visited (7) 1400 Robots Destroyed (78) 390 Value Destroyed (3733) 3733 Prototype IDs (28) 560 Alien Tech Used (0) 0 Bonus (2953) 2953 TOTAL SCORE: 10036 Bonus ------- Triggered High Security 500 High Alert Combat Kills 1287 Follower Combat Kills 166 Entered Garrisons 200 Used RIF Installer 500 Aligned with FarCom 300 Cogmind --------- Core Integrity 0/550 Matter 139/300 Energy 96/290 System Corruption 55% Temperature Cool (9) Movement Rolling (100) Location -8/Materials Parts ------- > --- POWER (1) -------- Reinforced Deuterium Engine (fused) > --- PROPULSION (4) --- Armored Huge Wheel Armored Huge Wheel > --- UTILITY (4) ------ Advanced Cooling System Medium Storage Unit Core Shielding Core Shielding > --- WEAPON (2) ------- Mass Driver Heavy Shock Bomb Launcher > --- INVENTORY (10) --- Light Ion Engine Light Treads Antigrav System Advanced Cooling System Improved Thermal Shield Long-range Proton Cannon Latent Energy Streamer Enhanced Gauss Cannon Peak State ------------ > --- POWER ------------ Reinforced Deuterium Engine > --- PROPULSION ------- Improved Medium Treads Aluminum Leg Aluminum Leg Compact Wheel > --- UTILITY ---------- Coolant Injector Medium Storage Unit Improved Shield Generator Advanced System Shield > --- WEAPON ----------- Variable Charge Gun Latent Energy Streamer > --- INVENTORY -------- Light Ion Engine Neutrino Core Antigrav System Advanced Cooling System Advanced Cooling System Improved Thermal Shield Long-range Proton Cannon Mass Driver Enhanced Gauss Cannon Heavy Shock Bomb Launcher [Rating: 48] Favorites ----------- Power Reinforced Deuterium Engine Engine Reinforced Deuterium Engine Power Core Light Nuclear Core Propulsion Aluminum Leg Treads Improved Medium Treads Leg Aluminum Leg Wheel Compact Wheel Hover Unit Aerolev Unit Utility Medium Storage Unit Device Improved Shield Generator Storage Medium Storage Unit Hackware Advanced System Shield Protection Light Armor Plating Weapon Variable Charge Gun Energy Gun Variable Charge Gun Energy Cannon Latent Energy Streamer Ballistic Gun Heavy Assault Rifle Ballistic Cannon Enhanced Gauss Cannon Launcher Heavy Shock Bomb Launcher Build | -11 -10 -10 -10 -9 -8 -8 -8 ------- Run | Yrd Mat Min Exi Min Mat Gar Mat Slots Evolved 4 | . . . . . 4 . . Power . | . . . . . . . . Propulsion 2 | . . . . . 2 . . Utility 2 | . . . . . 2 . . Weapon . | . . . . . . . . Parts Attached 81 | 6 3 . 1 1 24 30 16 Power 6 | 1 . . . . 4 1 . Engine 4 | 1 . . . . 2 1 . Core 2 | . . . . . 2 . . Reactor . | . . . . . . . . Propulsion 19 | 3 . . . . 5 8 3 Treads 8 | 2 . . . . 3 3 . Leg 5 | 1 . . . . . 3 1 Wheel 5 | . . . . . 1 2 2 Hover 1 | . . . . . 1 . . Flight . | . . . . . . . . Utility 19 | 1 1 . . . 3 9 5 Device 6 | . . . . . 1 3 2 Storage 2 | 1 1 . . . . . . Processor . | . . . . . . . . Hackware 1 | . . . . . . 1 . Protection 10 | . . . . . 2 5 3 Artifact . | . . . . . . . . Weapon 37 | 1 2 . 1 1 12 12 8 Energy Gun 8 | . 1 . . . 2 3 2 Energy Cannon 15 | . . . 1 1 6 7 . Ballistic Gun 4 | 1 1 . . . . 2 . Ballistic Cannon 8 | . . . . . 4 . 4 Launcher 2 | . . . . . . . 2 Special Weapon . | . . . . . . . . Impact Weapon . | . . . . . . . . Slashing Weapon . | . . . . . . . . Piercing Weapon . | . . . . . . . . Special Melee Weapon . | . . . . . . . . Unidentified Prototypes 3 | . . . . . 1 . 2 Corrupted Parts 4 | . . . . . 2 2 . System Corruption 17 | . . . . . 5 12 . Parts Lost 30 | . . . . . 7 14 9 Power 3 | . . . . . 2 1 . Propulsion 11 | . . . . . 3 4 4 Utility 9 | . . . . . . 6 3 Weapon 7 | . . . . . 2 3 2 Highest Loss Streak 10 | . . . . . 3 10 9 To Critical Strikes . | . . . . . . . . Average Slot Usage (%) 90 | . 84 100 72 72 73 92 88 Engine 7 | . 14 14 14 14 6 7 9 Core 1 | . . . . . 2 1 . Treads 14 | . 28 28 28 28 22 13 5 Leg 12 | . . . . . . 14 10 Wheel 6 | . . . . . . 7 11 Device 14 | . . . . . 5 16 13 Storage 10 | . 16 28 28 28 14 9 9 Hackware 6 | . . . . . . 7 5 Protection 3 | . . . . . 5 3 7 Energy Gun 7 | . 1 . . . 3 8 9 Energy Cannon 2 | . . . 1 1 5 3 . Ballistic Gun 1 | . 23 28 . . . 1 . Naked Turns . | . . . . . . . . Heaviest Build 47 | 10 21 21 28 28 46 45 47 Greatest Support 80 | 40 40 40 40 40 60 80 56 Greatest Overweight (x) 3 | . . . . . 2 2 3 Average Overweight (x) . | . . . . . . . 1 Largest Inventory Capacity 10 | 8 10 10 10 10 10 10 10 Average Capacity 9 | 6 8 10 10 10 10 10 10 Most Carried 10 | 7 7 6 7 7 8 10 10 Average Carried 9 | 5 6 6 6 6 5 9 9 Final Capacity 10 | 8 10 10 10 10 10 10 10 Final Carried 10 | 7 6 6 7 6 5 10 10 Class Distribution -------------------- 80% | Mutant 19% | Scavenger-Mutant Dominant Class ---------------- Mutant | -10/Materials Mutant | -10/Mines Mutant | -10/Exiles Mutant | -9/Mines Mutant | -8/Materials Mutant | -8/Garrison Mutant | -8/Materials Resources | -11 -10 -10 -10 -9 -8 -8 -8 ----------- Run | Yrd Mat Min Exi Min Mat Gar Mat Matter Collected 1899 | 217 91 . . . 463 542 586 Remotely 225 | . . . . . . . 225 Salvage Created 3456 | . 158 . . . 1315 707 1276 Parts 162 | . 5 . . . 64 36 57 Haulers Intercepted 1 | . . . . . 1 . . Recyclers Shooed . | . . . . . . . . Parts Field Recycled . | . . . . . . . . Retrieved Matter . | . . . . . . . . Parts Self-Destructed . | . . . . . . . . Prevented . | . . . . . . . . Kills | -11 -10 -10 -10 -9 -8 -8 -8 ------- Run | Yrd Mat Min Exi Min Mat Gar Mat Combat Hostiles Destroyed 60 | . 5 . . . 18 16 21 Melee 1 | . . . . . . 1 . Guns 22 | . 5 . . . 3 8 6 Cannons 17 | . . . . . 7 5 5 AOE 20 | . . . . . 8 2 10 Classes Destroyed 17 | . 3 . . . 10 2 2 Worker 3 | . 1 . . . 1 . 1 Builder 5 | . . . . . 4 . 1 Tunneler 1 | . . . . . . . 1 Hauler 1 | . . . . . 1 . . Recycler 3 | . . . . . 2 . 1 Mechanic 3 | . . . . . 1 . 2 Watcher 2 | . . . . . 1 1 . Swarmer 9 | . 3 . . . . 6 . Grunt 27 | . 2 . . . 11 . 14 Brawler 5 | . . . . . 1 2 2 Duelist 5 | . . . . . . 1 4 Protector 1 | . . . . . . . 1 Sentry 7 | . . . . . 2 5 . Specialist 2 | . . . . . 2 . . Hunter 2 | . . . . . 1 1 . Heavy 1 | . . . . . 1 . . Behemoth 1 | . . . . . . 1 . Best Kill Streak 16 | . 3 . . . 10 3 16 Combat Bots Only 13 | . 3 . . . 5 3 13 Max Kills in Single Turn 4 | . 1 . . . 4 2 4 Gunslinging 1 | . . . . . . . 1 Exploded 4 | . . . . . 3 2 4 Melee 1 | . . . . . . 1 . Uniques/NPCs Destroyed . | . . . . . . . . Combat | -11 -10 -10 -10 -9 -8 -8 -8 -------- Run | Yrd Mat Min Exi Min Mat Gar Mat Hostile Shots Fired 395 | . 49 . . . 101 161 84 Missed 116 | . 17 . . . 28 50 21 Damage Taken 4970 | . 388 . . . 1459 1800 1323 Core 614 | . 58 . . . 161 190 205 Absorbed by Shields 93 | . . . . . . 54 39 Redirected to Shielding 21 | . . . . . . . 21 Core Remaining (%) 88 | 100 . . . 76 . . . Volleys Fired 262 | . 23 . . . 46 140 53 Largest 2 | . 2 . . . 2 2 2 Hottest 295 | . 70 . . . 94 86 295 Shots Fired 389 | . 44 . . . 66 206 73 Gun 290 | . 44 . . . 26 180 40 Cannon 92 | . . . . . 40 26 26 Launcher 7 | . . . . . . . 7 Special . | . . . . . . . . Kinetic 153 | . 32 . . . 22 73 26 Thermal 185 | . 12 . . . 26 107 40 Explosive . | . . . . . . . . Electromagnetic 51 | . . . . . 18 26 7 Robot Hit Streak 21 | . 7 . . . 9 21 6 Robot Miss Streak 8 | . 3 . . . 8 3 2 Penetration Max . | . . . . . . . . Secondary Targets 3 | . 2 . . . . . 1 Max Gunslinging Chain 1 | . 1 . . . . . 1 Shots Hit Robots 229 | . 28 . . . 49 101 51 Core Hits 156 | . 11 . . . 64 35 46 Critical Kills . | . . . . . . . . Critical Parts Destroyed . | . . . . . . . . Critical Strikes 12 | . 1 . . . 4 3 4 Burn 8 | . 1 . . . 4 3 . Blast 4 | . . . . . . . 4 Melee Attacks . | . . . . . . . . Impact . | . . . . . . . . Slashing . | . . . . . . . . Piercing . | . . . . . . . . Sneak Attacks . | . . . . . . . . Combat Hostiles . | . . . . . . . . Follow-up Attacks . | . . . . . . . . Damage Inflicted 7850 | . 357 . . . 2514 2046 2933 Guns 2621 | . 354 . . . 253 1242 772 Cannons 1564 | . . . . . 600 330 634 Explosions 3621 | . . . . . 1659 435 1527 Melee . | . . . . . . . . Ramming 44 | . 3 . . . 2 39 . Kinetic 2062 | . 274 . . . 359 795 634 Thermal 2182 | . 80 . . . 432 567 1103 Explosive 47 | . . . . . . . 47 Electromagnetic 3515 | . . . . . 1721 645 1149 Impact . | . . . . . . . . Slashing . | . . . . . . . . Piercing . | . . . . . . . . Highest Corruption 55 | . 2 2 2 2 24 55 55 Average Corruption 47 | . 1 2 2 2 19 50 55 Corruption Purged . | . . . . . . . . Corruption Blocked . | . . . . . . . . Effects 543 | . . 1 8 1 18 457 58 Message Errors 143 | . . . 1 . 1 125 16 Matter Fused 79 | . . . 2 . 7 60 10 Heat Flow Errors 63 | . . . . . 3 59 1 Energy Discharges 63 | . . . 3 1 1 54 4 Parts Fused 7 | . . 1 . . . 6 . Data Loss (minor) 80 | . . . 2 . 1 64 13 Data Loss (major) 38 | . . . . . 3 32 3 Misfires 26 | . . . . . . 23 3 Alerts 12 | . . . . . . 12 . Misdirections 4 | . . . . . 1 2 1 Weapon Failures 28 | . . . . . 1 20 7 Overload Shots 3 | . . . . . . . 3 Overflow Damage 102 | . . . . . 26 10 66 Projectiles 66 | . . . . . . . 66 Explosions 36 | . . . . . 26 10 . Melee . | . . . . . . . . Knockbacks 15 | . . . . . 5 . 10 Impact . | . . . . . . . . Kinetic 14 | . . . . . 5 . 9 Secondary 1 | . . . . . . . 1 Self-Inflicted Damage 176 | . . . . . 105 71 . Shots 4 | . . . . . 2 2 . Rammed 12 | . 2 . . . 1 9 . Targets Rammed 19 | . 2 . . . 1 16 . Kicked 7 | . . . . . . 7 . Crushed . | . . . . . . . . Highest Temperature 345 | . 255 . . . 276 311 345 Average Temperature 88 | . 143 . . . 86 78 139 Received Heat Transfer 1632 | . 174 . . . 486 566 406 Effects 5 | . 2 . . . . . 3 Interference 4 | . 2 . . . . . 2 Damage (minor) 1 | . . . . . . . 1 Siege Activations . | . . . . . . . . Robots Corrupted . | . . . . . . . . Combat Hostiles . | . . . . . . . . Parts Fried 25 | . . . . . 17 5 3 Impact Corruptions 1 | . . . . . . . 1 Robots Melted . | . . . . . . . . Combat Hostiles . | . . . . . . . . Parts Melted 4 | . . . . . 1 2 1 Heat Transferred 4462 | . 296 . . . 1236 1532 1398 Parts Sabotaged . | . . . . . . . . Parts Stolen . | . . . . . . . . Parts Stripped . | . . . . . . . . Power Chain Reactions 9 | . . . . . 2 2 5 Latent Energy Used 1687 | . . . . . 959 728 . LE Corruption 29 | . . . . . 15 14 . Alert | -11 -10 -10 -10 -9 -8 -8 -8 ------- Run | Yrd Mat Min Exi Min Mat Gar Mat Peak Influence 6601 | . 137 53 . . 571 6601 3401 Initial 3217 | . . 53 . . . 373 3217 Average 3070 | . 71 53 . . 243 3386 3172 Maximum Alert Level 5 | . . . . . 2 5 5 Low Security (%) 6 | 100 100 100 . 100 49 . . Level 1 1 | . . . . . 20 . . Level 2 6 | . . . . . 30 5 . Level 3 3 | . . . . . . 3 . Level 4 12 | . . . . . . 15 . Level 5 69 | . . . . . . 75 99 High Security . | . . . . . . . . Max Security . | . . . . . . . . Squads Dispatched 10 | . . . . . 4 . 6 Investigation . | . . . . . . . . Extermination . | . . . . . . . . Reinforcement 5 | . . . . . 4 . 1 Assault 5 | . . . . . . . 5 Garrison . | . . . . . . . . Intercept . | . . . . . . . . Searches Triggered . | . . . . . . . . Construction Impeded 1 | . . . . . . . 1 Haulers Reinforced . | . . . . . . . . Active Scanning Responses . | . . . . . . . . Cargo Convoy Interrupts . | . . . . . . . . Stealth | -11 -10 -10 -10 -9 -8 -8 -8 --------- Run | Yrd Mat Min Exi Min Mat Gar Mat Distress Signals 3 | . . . . . 3 . . Communications Jammed . | . . . . . . . . Distress Signals . | . . . . . . . . Times Spotted 100 | . 8 . . . 28 25 39 Peak Tracking Total 12 | . 3 . . . 6 3 12 Tactical Retreats 8 | . . . . . 6 1 1 Traps | -11 -10 -10 -10 -9 -8 -8 -8 ------- Run | Yrd Mat Min Exi Min Mat Gar Mat Traps Triggered 10 | . 2 . . . 2 6 . Indirectly . | . . . . . . . . Trap Hack Attempts . | . . . . . . . . Triggered . | . . . . . . . . Disarmed . | . . . . . . . . Reprogrammed . | . . . . . . . . Reused . | . . . . . . . . Traps Extracted . | . . . . . . . . Installed . | . . . . . . . . Triggered . | . . . . . . . . Machines | -11 -10 -10 -10 -9 -8 -8 -8 ---------- Run | Yrd Mat Min Exi Min Mat Gar Mat Machines Disabled 13 | . . . . . 4 6 3 Max in Single Turn 3 | . . . . . 3 2 1 Garrison Relay 4 | . . . . . . 4 . Phase Generator 1 | . . . . . . 1 . Machines Repaired . | . . . . . . . . Machines Dismantled . | . . . . . . . . Machines Sabotaged . | . . . . . . . . Overloaded Fab Kills . | . . . . . . . . Hacking | -11 -10 -10 -10 -9 -8 -8 -8 --------- Run | Yrd Mat Min Exi Min Mat Gar Mat Machines Accessed 11 | . 1 . 2 . 3 5 . Terminals 7 | . 1 . . . 1 5 . Fabricators . | . . . . . . . . Repair Stations 1 | . . . . . 1 . . Recycling Units . | . . . . . . . . Scanalyzers . | . . . . . . . . Garrison Access 1 | . . . . . 1 . . Total Hacks 27 | . 4 . 2 . 8 13 . Successful 10 | . 4 . 2 . 3 1 . Failed 17 | . . . . . 5 12 . Catastrophic 7 | . . . . . 2 5 . Database Lockouts . | . . . . . . . . Manual 7 | . 3 . 1 . 3 . . Terminals 21 | . 4 . . . 4 13 . Fabricators . | . . . . . . . . Repair Stations 2 | . . . . . 2 . . Recycling Units . | . . . . . . . . Scanalyzers . | . . . . . . . . Garrison Access 2 | . . . . . 2 . . Terminal Hacks 8 | . 4 . 2 . 1 1 . Record 1 | . . . 1 . . . . Part Schematic 1 | . 1 . . . . . . Robot Analysis 2 | . 2 . . . . . . Prototype ID Bank 1 | . . . . . 1 . . Open Door 1 | . . . . . . 1 . Locate Traps 1 | . 1 . . . . . . Derelict Proto ID Bank 1 | . . . 1 . . . . Fabricator Hacks . | . . . . . . . . Repair Station Hacks 1 | . . . . . 1 . . Scan Component 1 | . . . . . 1 . . Recycling Unit Hacks . | . . . . . . . . Scanalyzer . | . . . . . . . . Garrison Access Hacks 1 | . . . . . 1 . . Unlock Access 1 | . . . . . 1 . . Unauthorized Hacks . | . . . . . . . . Terminals . | . . . . . . . . Fabricators . | . . . . . . . . Repair Stations . | . . . . . . . . Recycling Units . | . . . . . . . . Scanalyzers . | . . . . . . . . Garrison Access . | . . . . . . . . Data Cores Recovered . | . . . . . . . . Used . | . . . . . . . . Hacking Detections 9 | . 1 . . . 3 5 . Full Trace Events 3 | . . . . . . 3 . Feedback Events . | . . . . . . . . Feedback Blocked . | . . . . . . . . Robot Schematics Acquired . | . . . . . . . . Robots Built . | . . . . . . . . Authchips . | . . . . . . . . Time . | . . . . . . . . Total Robot Build Rating . | . . . . . . . . Part Schematics Acquired 1 | . 1 . . . . . . Parts Built . | . . . . . . . . Authchips . | . . . . . . . . Time . | . . . . . . . . Total Part Build Rating . | . . . . . . . . Parts Repaired . | . . . . . . . . Time . | . . . . . . . . Parts Recycled . | . . . . . . . . Recycled Matter . | . . . . . . . . Retrieved Matter . | . . . . . . . . Retrieved Components . | . . . . . . . . Parts Scanalyzed . | . . . . . . . . Part Schematics Acquired . | . . . . . . . . Parts Damaged . | . . . . . . . . Bothacking | -11 -10 -10 -10 -9 -8 -8 -8 ------------ Run | Yrd Mat Min Exi Min Mat Gar Mat Used RIF Installer 1 | . . . . . . 1 . Robots Hacked . | . . . . . . . . Non-combat . | . . . . . . . . Combat . | . . . . . . . . Robot Hacks Applied . | . . . . . . . . Relay Couplers Released 18 | . . . . . . 18 . Machine Destruction 18 | . . . . . . 18 . Fabnet Peak Effective % . | . . . . . . . . Robots Rewired . | . . . . . . . . Allies Hacked . | . . . . . . . . Hacks Repelled . | . . . . . . . . Allies | -11 -10 -10 -10 -9 -8 -8 -8 -------- Run | Yrd Mat Min Exi Min Mat Gar Mat Total Allies 2 | . . . . . . 2 . Largest Group 2 | . . . . . . 2 . Highest-Rated Group 56 | . . . . . . 56 . Highest-Rated Ally 31 | . . . . . . 31 . Total Orders . | . . . . . . . . Ally Attacks 28 | . . . . . . 28 . Total Damage 528 | . . . . . . 528 . Kills 8 | . . . . . . 8 . Allies Corrupted 1 | . . . . . . 1 . Allies Melted . | . . . . . . . . Intel | -11 -10 -10 -10 -9 -8 -8 -8 ------- Run | Yrd Mat Min Exi Min Mat Gar Mat Robot Analysis Total 2 | . 2 . . . . . . Derelict Logs Recovered 2 | . . 1 . 1 . . . Drone Launches . | . . . . . . . . Drone Recoveries . | . . . . . . . . Exploration | -11 -10 -10 -10 -9 -8 -8 -8 ------------- Run | Yrd Mat Min Exi Min Mat Gar Mat Turns Passed 12001 | 76 228 50 413 80 642 9614 898 Spaces Moved 2281 | 46 98 32 227 50 258 1446 124 Core 13 | 13 . . . . . . . Treads 1644 | 33 98 32 227 50 251 953 . Legs 23 | . . . . . . 4 19 Wheels 601 | . . . . . 7 489 105 Hover . | . . . . . . . . Flight . | . . . . . . . . Fastest Speed 50 | 50 160 160 160 160 130 100 100 Average Speed 157 | 128 160 160 160 160 180 154 152 Slowest Speed 330 | 160 160 160 160 160 320 190 330 Overloaded Moves . | . . . . . . . . Propulsion Burnouts . | . . . . . . . . Robots Hopped . | . . . . . . . . Cave-ins Triggered . | . . . . . . . . Exploration Rate (%) 32 | 5 28 13 61 15 35 94 9 Regions Visited 7 Branch Regions 3 Pre-discovered Areas 1 | . . . 1 . . . . Known Exits Taken 2 | . . . 1 . 1 . . Unknown Exits Taken 4 | 1 1 1 . 1 . . . Scrap Searched . | . . . . . . . . Spaces Dug 1 | . . . . . . 1 . Terrain Destroyed 223 | . . . . . 71 112 40 Melee . | . . . . . . . . Projectile 11 | . . . . . . 1 10 AOE 212 | . . . . . 71 111 30 Terrain Rammed . | . . . . . . . . Walls Destroyed . | . . . . . . . . Machines Disabled . | . . . . . . . . Actions | -11 -10 -10 -10 -9 -8 -8 -8 --------- Run | Yrd Mat Min Exi Min Mat Gar Mat Total 10271 | 61 125 31 278 50 359 8617 750 Wait 7557 | . . . 48 . 23 6932 554 Move 2275 | 45 97 31 226 49 258 1445 124 Hop . | . . . . . . . . Pick Up 32 | 10 . . . . 2 19 1 Fast Attach 35 | 2 1 . 1 . 8 13 10 Attach 26 | 3 1 . . 1 6 12 3 Detach 6 | . . . 1 . 2 3 . Swap 20 | 1 1 . . . 10 5 3 Drop 14 | . . . 2 . 3 7 2 Fire 262 | . 23 . . . 46 140 53 Melee . | . . . . . . . . Ram 2 | . . . . . . 2 . Kick 7 | . . . . . . 7 . Crush 11 | . 2 . . . 1 8 . Escape Stasis 24 | . . . . . . 24 . Rewire . | . . . . . . . . Trap . | . . . . . . . . Miscellaneous . | . . . . . . . . Route ------- -11/Scrapyard -10/Materials -10/Mines -10/Exiles (discovered 2 exits: *Min x2) -9/Mines -8/Materials -8/Garrison (discovered 3 exits: [*Mat x3]) -8/Materials History --------- Turn | Location | Event 11 | -11/Scrapyard | Discovered new exit (range 16) 77 | -11/Scrapyard | Entered Materials 214 | -10/Materials | Discovered new exit (range 8) 300 | -10/Materials | Build established: Mutant 305 | -10/Materials | Entered Mines 349 | -10/Mines | Deemed a non-threat by the Exiles lab entrance 349 | -10/Mines | Discovered new exit (range 5) 355 | -10/Mines | Entered Exiles 356 | -10/Exiles | Identified exit to Mines 395 | -10/Exiles | Met 8R-AWN 424 | -10/Exiles | Met EX-HEX 473 | -10/Exiles | Met EX-BIN 492 | -10/Exiles | Aligned with FarCom system 494 | -10/Exiles | Given EX-Vault access code 532 | -10/Exiles | Opened EX-Vault 544 | -10/Exiles | Found Latent Energy Streamer 579 | -10/Exiles | Warned to stay clear of 0b10 Research branches 599 | -10/Exiles | Exiles lab attacked by MAIN.C 637 | -10/Exiles | Learned location of Zion (-7) 768 | -10/Exiles | Left Exiles lab with Latent Energy Streamer 768 | -10/Exiles | Entered Mines 774 | -9/Mines | Met a Derelict bent on vengeance 820 | -9/Mines | Discovered new exit (range 10) 841 | -9/Mines | Learned Materials security intel 848 | -9/Mines | Entered Materials 848 | -8/Materials | Evolved 4 slots: Propulsion x2, Utility x2 1205 | -8/Materials | System corruption reached 10% 1372 | -8/Materials | Lost 3 parts (1p2w) 1490 | -8/Materials | Identified exit to Garrison 1490 | -8/Materials | Entered Garrison 1496 | -8/Garrison | Build established: Scavenger-Mutant 1556 | -8/Garrison | Triggered checkpoint 1680 | -8/Garrison | Triggered checkpoint 1738 | -8/Garrison | Discovered new exit (range 15) 1766 | -8/Garrison | Triggered checkpoint 1794 | -8/Garrison | Garrison Relay disabled 1878 | -8/Garrison | Triggered checkpoint 1973 | -8/Garrison | Discovered new exit (range 13) 2035 | -8/Garrison | System corruption reached 30% 2061 | -8/Garrison | Rescued a captive Derelict 2061 | -8/Garrison | Rescued a captive Derelict 2076 | -8/Garrison | Triggered checkpoint 2080 | -8/Garrison | Garrison Relay disabled 2216 | -8/Garrison | Triggered checkpoint 2264 | -8/Garrison | Triggered checkpoint 2337 | -8/Garrison | Garrison Relay disabled 2352 | -8/Garrison | Triggered checkpoint 2525 | -8/Garrison | Discovered new exit (range 12) 2728 | -8/Garrison | Garrison Relay disabled 3046 | -8/Garrison | Triggered checkpoint 3328 | -8/Garrison | Spotted B-75 Beast 3373 | -8/Garrison | Core integrity fell below 50% 3449 | -8/Garrison | Destroyed B-75 Beast 3466 | -8/Garrison | Lost 10 parts (1p3n4u2w) 3823 | -8/Garrison | Build established: Mutant 4190 | -8/Garrison | Installed Relay Interface Framework 4213 | -8/Garrison | Phase Generator disabled 11104 | -8/Garrison | Entered Materials 11504 | -8/Materials | First assault squad dispatched 11623 | -8/Materials | Core integrity fell below 20% 11661 | -8/Materials | Lost 9 parts (4n3u2w) 11994 | -8/Materials | High security lockdown imminent 12002 | -8/Materials | Destroyed by G-47 Trooper with Particle Gun Last Messages --------------- 11986_ G-47 Trooper unfolds itself. 11986_ M-28 Smith unfolds itself. 11988_ The unstable cave ceiling collapses. 11988_ G-47 Trooper destroyed. 11990_ IGC9Z9UIQFJZ0:YZLI3P:IJR,C 11991_ U-05 Engineer builds a Wall. 11993_ M-28 Smith repairs G-50 Soldier. 11994_ G-50 Soldier destroyed. 11994_ M-28 Smith destroyed. 11994_ G-50 Soldier destroyed. 11994_ ALERT: High security lockdown imminent, T-100. 11994_ Chain reaction triggered in Corrupted Unknown Engine. 11994_ Chain reaction triggered in Corrupted Imp. Ion Engine. 11994_ M-28 Smith destroyed. 11996_ Slug penetrates G-47 Trooper. 11996_ G-47 Trooper knocked back. 11997_ G-47 Trooper misfires. Map ----- +----------------------------------------------------+ | | | | | | | ?????????????????????????????????????????????????? | | ?????????????????????????????????????????????????? | | ?????????????????????????????????????????????????? | | ?????????????????????????????????????????????????? | | ?????????????????????????????????????????????????? | | ?????????????????????????????????????????????????? | | ?????????????????????????????????????????????????? | | ?????????????????????????????????????????????????? | | ?????????????????????????????????????????????????? | | ????????????????#####????????????????????????????? | | ????????????????#[[ #????????????????????????????? | | ????????????????#[ #####????????????????????????? | | ????????????????#== #??????########??????????? | | ????????????????# #??????# #??????????? | | ????????????????#!! #??????#""" #??????????? | | ????????????????#!! #??????#""" !;??????????? | | ????????????????##### #??????# ;??????????? | | ????????????????????# #?????## ;??????????? | | ???????????????????## ###### ==/g ;#?????????? | | ???????????????????# ### =[=%;! #######??? | | ???????????????????# % %[=%!* #??? | | ???????????????????# % % ! [=%%=!*% #??? | | ???????????????????# / @=%* [ g=%% #??? | | ???????????????????# ! % %!######## #??? | | ???????????????????###### =% #??????????#??? | | ????????????????????? % # #?????????????? | | ???????????????????? #?????????????? | | ??????????????????? #?????????????? | | ????????????????? [ #?????????????? | | ????????????????# "" " #"""g #?????????????? | | ????????????????# """ T #""" i #?????????????? | | ????????????????# """ " ?""" #?w???????????? | | ????????????????#?? ? g #?????????????? | | ??????????????????#######g?????#+###?????????????? | | ????????????????????????? g?????? ???????????????? | | ????????????????????????? ???????????????????????? | | ????????????????????????? ???????????????????????? | | ?????????????????????????#???????????????????????? | | ?????????????????????????????????????????????????? | | ?????????????????????????????????????????????????? | | ?????????????????????????????????????????????????? | | ?????????????????????????????????????????????????? | | ?????????????????????????????????????????????????? | | ?????????????????????????????????????????????????? | | ?????????????????????????????????????????????????? | | ?????????????????????????????????????????????????? | | ?????????????????????????????????????????????????? | +----------------------------------------------------+ Best States ------------- Heat Dissipation 62 Coolant Potential 65 Energy Generation 16 Energy Capacity 290 Matter Stores 300 Matter Capacity 300 Sight Range 16 Terrain Scan Density 10 Armor Coverage 600 Core Shielding 20 Evasion (%) 50 Recoil Reduction 4 Defensive Hacking 14 Item Schematics ----------------- Seismic Detector | -10/Materials | Hacked Robot Schematics ------------------ None Fabricated ------------ Nothing Alien Tech Used ----------------- None Achievements -------------- None Challenges ------------ None Game ------ Seed SuperchargedTachyonLoader Manual? 0 Play Time 00:39:05 Cumulative 268.5 hours Start 2024.04.25 @ 02:45:07 End 2024.04.25 @ 03:50:56 Sessions 1 Manual Loads 0 Difficulty Rogue Special Mode None Game No. 202 Rogue 202 Adventurer 0 Explorer 0 Win Type - Total 9 Types 6/0/2/1/0/0/0/0/0 Lore% 77 Gallery% 83 Achievement% 70 Wizard Run 0 Options --------- Layout 2 ASCII 1 Keyboard 0 Movement Mouse Keybinds 0 Fullscreen 2 Font 24/Smallcaps Map View 50x44 Zoom Use 0% Tactical HUD 1 Map Filters NONE Filters NONE Steam 1 RUN: 48663140-c903-4a8c-8cac-54e97676debf